fUST/lending_fUST_20240105
["ID","MTS","AMOUNT","RATE_DAILY","PERIOD"]
[310247248,1704415841736,-160.0,0.00035389,4]
[310247249,1704415841745,-503.0,0.00035452,2]
[310247250,1704415841755,-456.93,0.00035489,3]
[310247251,1704415841764,-1225.36929881,0.00035497,5]
[310247252,1704415841773,-1072.39778292,0.00035498,4]
[310247253,1704415841782,-3539.86097792,0.00035498,2]
[310247254,1704415841791,-1375.83,0.00035499,4]
[310247255,1704415841800,-30929.26601856,0.00035499,4]
[310247319,1704415846602,-1318.3326242,0.00035499,4]
[310247446,1704416825098,-154.78330338,0.00029999,4]
[310247447,1704416825119,-374.09442662,0.0003,10]
[310247448,1704416843089,-169.09732386,0.0003,10]
[310247451,1704416954086,-154.78330338,0.00029999,4]
[310247452,1704416954107,-335.52551861,0.0003,10]
[310247475,1704417032679,-154.78330338,0.00031947,5]
[310247476,1704417032688,-973.92963115,0.00031948,2]
[310247477,1704417032698,-215.00133,0.0003283,2]
[310247478,1704417032708,-250.0,0.0003325,2]
[310247479,1704417032719,-2117.3055041,0.00033386,2]
[310247480,1704417032728,-240.82292215,0.00033399,2]
[310247481,1704417032739,-179.291717,0.00033413,2]
[310247482,1704417032749,-1000.0,0.00034,7]
[310247483,1704417032761,-174.72204,0.00034225,2]
[310247484,1704417032772,-7001.98951534,0.000345,2]
[310247490,1704417038763,-277.43787512,0.000345,2]
[310247499,1704417038844,-1136.22122468,0.000345,2]
[310247501,1704417038855,-1947.948082,0.00034521,2]
[310247503,1704417038864,-181.3973617,0.00034795,2]
[310247505,1704417038873,-468.0,0.00035479,2]
[310247507,1704417038884,-2980.31898733,0.00035499,4]
[310247551,1704417046291,-672.6718507,0.00035499,4]
[310247554,1704417047357,-531.27808228,0.00035499,4]
[310247592,1704418037086,-154.79876161,0.00033101,5]
[310247593,1704418037106,-714.52415972,0.00033102,2]
[310247594,1704418037255,-232.23298,0.00033203,2]
[310247595,1704418037277,-215.26419916,0.00033399,2]
[310247596,1704418037300,-179.291717,0.00033775,2]
[310247597,1704418037322,-1000.0,0.00034,7]
[310247598,1704418037343,-3864.87566509,0.0003452,2]
[310247599,1704418042105,-1033.45421628,0.0003452,2]
[310247681,1704418237952,-154.79876161,0.00031948,5]
[310247684,1704418237972,-232.23298,0.00032818,2]
[310247686,1704418237983,-182.071027,0.00033991,2]
[310247687,1704418237992,-10000.0,0.00034,2]
[310247704,1704418238162,-1000.0,0.00034,7]
[310247706,1704418238172,-1322.62133174,0.0003452,14]
[310247708,1704418238182,-1558.358465,0.00034521,2]
[310247710,1704418238191,-292.9038477,0.00035407,2]
[310247712,1704418238202,-685.26,0.0003549,3]
[310247714,1704418238211,-680.1564,0.00035498,4]
[310247716,1704418238220,-164.59632354,0.00035498,4]
[310247718,1704418238229,-454.89181024,0.00035498,2]
[310247719,1704418238239,-160.25313819,0.00035498,4]
[310247721,1704418238248,-46992.09509703,0.000355,14]
[310247723,1704418238258,-421.0,0.00035507,2]
[310247725,1704418238267,-185.270254,0.00035616,120]
[310247726,1704418238277,-1558.358465,0.00035798,2]
[310247727,1704418238287,-160.0,0.00035927,3]
[310247728,1704418238297,-530.48240443,0.00036,30]
[310247729,1704418238308,-160.0,0.00036066,4]
[310247730,1704418238318,-180.56266,0.00036151,2]
[310247731,1704418238327,-160.0,0.00036204,5]
[310247732,1704418238336,-160.0,0.00036343,6]
[310247733,1704418238346,-160.0,0.00036481,7]
[310247734,1704418238356,-160.0,0.0003662,8]
[310247735,1704418238366,-5158.66907481,0.00036698,2]
[310247800,1704418242881,-1918.420002,0.000345,2]
[310247802,1704418242900,-283.59592369,0.000345,2]
[310247828,1704419359111,-154.79876161,0.00029999,4]
[310247829,1704419359136,-152.85315036,0.0003,2]
[310247933,1704419432206,-6.14684964,0.0003,2]
[310247935,1704419432217,-169.90349915,0.0003,2]
[310247936,1704419432226,-251.98786307,0.0003,4]
[310247937,1704419432236,-154.78330338,0.00031047,5]
[310247938,1704419432246,-150.01354083,0.00032,2]
[310247939,1704419432255,-1383.26248976,0.00032944,4]
[310247940,1704419432264,-239.3869365,0.00032945,2]
[310247941,1704419432274,-174.72204,0.00033112,2]
[310247942,1704419432283,-150.0,0.00033698,2]
[310247944,1704419432294,-1000.0,0.00034488,7]
[310247946,1704419432304,-1022.99,0.00034489,3]
[310247948,1704419432314,-852.5,0.00034489,3]
[310247950,1704419432324,-710.41,0.00034489,3]
[310247951,1704419432334,-961.11,0.00034489,3]
[310247953,1704419432348,-6799.98338445,0.00034499,4]
[310247956,1704419432361,-2376.51335316,0.00034499,4]
[310247957,1704419432374,-4251.90471689,0.00034499,4]
[310247958,1704419432387,-823.15385068,0.00034499,4]
[310247959,1704419432399,-71315.43637965,0.00034499,4]
[310248055,1704419446013,-154.79876161,0.00029998,4]
[310248058,1704419446023,-155.03786366,0.00034498,4]
[310248061,1704419446032,-45.95337464,0.00034499,4]
[310248063,1704419446044,-2384.88425944,0.00034499,4]
[310248065,1704419446053,-6215.29517158,0.000345,2]
[310248066,1704419446062,-296.03215916,0.0003452,14]
[310248067,1704419446071,-935.015079,0.00034521,2]
[310248068,1704419446081,-2870.28186294,0.00035,2]
[310248070,1704419446090,-596.03128961,0.00035,2]
[310248071,1704419446099,-175.05678524,0.00035134,2]
[310248073,1704419446112,-348.47306666,0.00035134,2]
[310248075,1704419446121,-1000.0,0.00035134,10]
[310248077,1704419446131,-166.97020159,0.00035134,2]
[310248078,1704419446140,-379.0,0.00035452,2]
[310248082,1704419446149,-273.00037373,0.00035498,4]
[310248085,1704419446158,-1340.56504428,0.00035498,4]
[310248088,1704419446168,-185.270254,0.00035616,120]
[310248093,1704419446177,-935.015079,0.00035798,2]
[310248097,1704419446186,-835.9699909,0.00036698,2]
[310248101,1704419446198,-4308.67640274,0.00036698,4]
[310248104,1704419446207,-154.93841378,0.00036698,4]
[310248107,1704419446217,-1078.15580867,0.00036699,5]
[310248112,1704419446227,-153.0,0.00036731,2]
[310248115,1704419446237,-153.0,0.00036731,2]
[310248119,1704419446246,-153.0,0.00036731,2]
[310248123,1704419446255,-153.8251926,0.00036731,2]
[310248126,1704419446265,-153.0,0.00036731,2]
[310248129,1704419446275,-153.0,0.00036731,2]
[310248132,1704419446285,-153.0,0.00036731,2]
[310248136,1704419446294,-153.0,0.00036731,2]
[310248140,1704419446304,-153.0,0.00036731,2]
[310248181,1704419446443,-160.0,0.00036759,9]
[310248184,1704419446454,-160.0,0.00036897,10]
[310248188,1704419446464,-504.33637519,0.00037,7]
[310248191,1704419446474,-346.37340412,0.00037029,2]
[310248193,1704419446484,-160.0,0.00037036,11]
[310248195,1704419446493,-935.015079,0.00037075,2]
[310248196,1704419446502,-160.0,0.00037174,12]
[310248198,1704419446512,-153.0,0.00037279,2]
[310248201,1704419446522,-153.0,0.00037279,2]
[310248203,1704419446531,-153.0,0.00037279,2]
[310248206,1704419446541,-153.0,0.00037279,2]
[310248209,1704419446551,-153.0,0.00037279,2]
[310248212,1704419446561,-153.0,0.00037279,2]
[310248216,1704419446570,-153.0,0.00037279,2]
[310248217,1704419446580,-153.0,0.00037279,2]
[310248221,1704419446590,-153.0,0.00037279,2]
[310248223,1704419446600,-153.0,0.00037279,2]
[310248226,1704419446610,-307.2784068,0.00037279,2]
[310248228,1704419446620,-269.74,0.000373,4]
[310248230,1704419446631,-160.0,0.00037313,13]
[310248232,1704419446641,-156.54112307,0.00037356,2]
[310248234,1704419446651,-160.0,0.00037452,14]
[310248237,1704419446661,-160.0,0.0003759,15]
[310248240,1704419446670,-160.0,0.00037729,16]
[310248243,1704419446681,-19710.40990436,0.0003777,30]
[310248246,1704419446691,-150.86716044,0.00037793,2]
[310248249,1704419446700,-160.0,0.00037867,17]
[310248252,1704419446710,-800.93,0.00037889,3]
[310248255,1704419446719,-479.7439829,0.00037898,2]
[310248258,1704419446731,-471.83036073,0.00037898,2]
[310248261,1704419446740,-883.12990218,0.00037899,7]
[310248264,1704419446750,-24343.15611389,0.00037899,14]
[310248267,1704419446760,-86018.74797621,0.000379,2]
[310248270,1704419446769,-151.369176,0.000379,2]
[310248273,1704419446779,-151.0,0.000379,2]
[310248276,1704419446789,-174.3,0.000379,2]
[310248279,1704419446799,-174.3,0.000379,2]
[310248281,1704419446808,-151.0,0.000379,2]
[310248283,1704419446818,-250.0,0.00037948,15]
[310248284,1704419446827,-180.56266,0.00037959,2]
[310248286,1704419446839,-199.91851122,0.00037996,4]
[310248288,1704419446848,-402.66502301,0.00037996,4]
[310248290,1704419446860,-205.6045641,0.00037996,7]
[310248292,1704419446869,-4825.07202179,0.00037998,4]
[310248294,1704419446882,-241.94011901,0.00037998,4]
[310248296,1704419446893,-230.66052729,0.00038,3]
[310248298,1704419446902,-435.41966528,0.00038,2]
[310248300,1704419446911,-2043.88723111,0.00038,7]
[310248302,1704419446920,-379.48356558,0.00038,4]
[310248304,1704419446930,-13676.29394445,0.00038,2]
[310248306,1704419446939,-3310.93188267,0.00038,3]
[310248308,1704419446948,-28671.00361302,0.00038,10]
[310248311,1704419446960,-49946.3077192,0.00038,10]
[310248317,1704419447013,-421.42928975,0.00037897,4]
[310248319,1704419447022,-309.06583912,0.00037897,4]
[310248321,1704419447034,-448.43304468,0.00037897,4]
[310248323,1704419447043,-1806.14695537,0.00038,10]
[310248379,1704419447591,-6831.579997,0.00038,10]
[310248381,1704419447605,-10943.47441874,0.00038,10]
[310248389,1704419447670,-3647.5213323,0.00038,10]
[310248392,1704419447682,-3379.80772246,0.00038,10]
[310248396,1704419447694,-172836.68332263,0.00038,10]
[310248399,1704419447704,-435.57594647,0.00038,30]
[310248402,1704419447714,-21607.39942279,0.00038,2]
[310248492,1704419664618,0.09576966,0.0002421,14]
[310248493,1704419664647,264.50714609,0.0002421,14]
[310248637,1704420101467,1924.48,0.00029,30]
[310248639,1704420439104,-264.60266705,0.00028175,2]
[310248640,1704420439123,-264.27506295,0.00028175,2]
[310248641,1704420439150,-169.09732386,0.00028175,2]
[310248642,1704420545266,-154.79876161,0.00028172,4]
[310248643,1704420545293,-255.04884946,0.00028173,2]
[310248644,1704420545318,-3913.18170102,0.00028184,2]
[310248645,1704420545343,-1005.09349243,0.00028185,2]
[310248646,1704420545368,-223.980814,0.00028261,2]
[310248647,1704420545395,-4916.24183138,0.0002835,2]
[310248648,1704420553122,-119.96344372,0.0002835,2]
[310248649,1704420553144,-176.2813721,0.00028666,2]
[310248650,1704420553165,-8723.23347102,0.0002988,4]
[310248651,1704420553187,-174.17904895,0.000299,4]
[310248652,1704420553209,-1667.20413064,0.000299,2]
[310248653,1704420553230,-177.8082802,0.0003,2]
[310248655,1704420567101,-154.76784823,0.00027898,4]
[310248808,1704420638403,-0.03091338,0.00027898,4]
[310248809,1704420638412,-255.04884946,0.00029999,2]
[310248810,1704420638422,-253.87482105,0.0003,2]
[310248811,1704420638430,-1221.1925829,0.0003,14]
[310248812,1704420638439,-3704.46366933,0.0003,3]
[310248826,1704420641502,-1483.82843279,0.0003,3]
[310248827,1704420641515,-13037.18734968,0.0003,3]
[310248828,1704420641525,-517.06,0.0003099,3]
[310248829,1704420641535,-658.39,0.0003099,3]
[310248830,1704420641544,-548.66,0.0003099,3]
[310248831,1704420641554,-457.22,0.0003099,3]
[310248832,1704420641563,-266.22008181,0.00030998,4]
[310248833,1704420641573,-1846.69377411,0.00030998,4]
[310248834,1704420641582,-443.24207364,0.00030999,2]
[310248835,1704420641591,-32190.62336677,0.00031,4]
[310248866,1704420644834,-71651.26393885,0.00031,4]
[310248867,1704420644844,-587.60928247,0.00032148,2]
[310248868,1704420644854,-200.0,0.00032999,15]
[310248869,1704420644865,-1000.0,0.00034,7]
[310248870,1704420644874,-3599.499769,0.00034521,2]
[310248871,1704420644884,-4280.0215874,0.00035,4]
[310248872,1704420644896,-459.76758246,0.00035371,2]
[310248873,1704420644905,-482.11304582,0.00035371,2]
[310248874,1704420644914,-949.93194681,0.00035371,2]
[310248875,1704420644924,-841.60999215,0.00035371,2]
[310248876,1704420644934,-240.50418921,0.00035371,2]
[310248877,1704420644943,-548.0,0.00035452,2]
[310248878,1704420644952,-221.59054,0.00035616,120]
[310248879,1704420644961,-3599.499769,0.00035798,2]
[310248880,1704420644971,-150.0,0.000359,2]
[310248881,1704420644980,-999.643862,0.00036,7]
[310248882,1704420644990,-3344.74285869,0.00036002,2]
[310248883,1704420645000,-280.0,0.00036299,15]
[310248884,1704420645009,-153.0,0.00036438,2]
[310248885,1704420645019,-153.0,0.00036438,2]
[310248886,1704420645028,-153.0,0.00036438,2]
[310248887,1704420645037,-151.0,0.00036591,2]
[310248888,1704420645046,-155.0,0.000369,2]
[310248889,1704420645055,-2529.46598961,0.00037,8]
[310248890,1704420645064,-43944.91217546,0.00037,7]
[310248891,1704420645073,-500.0,0.00037,7]
[310248892,1704420645082,-3599.499769,0.00037075,2]
[310248893,1704420645092,-153.0,0.0003726,2]
[310248894,1704420645102,-167.91,0.00037356,2]
[310248895,1704420645112,-167.91,0.00037356,2]
[310248896,1704420645122,-167.91,0.00037356,2]
[310248897,1704420645131,-167.91,0.00037356,2]
[310248898,1704420645142,-167.91,0.00037356,2]
[310248899,1704420645151,-167.91,0.00037356,2]
[310248900,1704420645161,-167.91,0.00037356,2]
[310248901,1704420645170,-167.91,0.00037356,2]
[310248902,1704420645180,-167.91,0.00037356,2]
[310248903,1704420645190,-167.91,0.00037356,2]
[310248904,1704420645199,-167.91,0.00037356,2]
[310248905,1704420645208,-167.91,0.00037356,2]
[310248906,1704420645218,-4184.20842677,0.0003777,30]
[310248907,1704420645228,-2697.93363405,0.000378,12]
[310248908,1704420645237,-854.00197275,0.00037896,4]
[310248909,1704420645246,-402.11356515,0.00037896,4]
[310248910,1704420645255,-1029.73603327,0.00037896,4]
[310248911,1704420645264,-3345.74785019,0.00037897,4]
[310248912,1704420645274,-243.60057,0.00037897,4]
[310248913,1704420645284,-155.51386368,0.00037897,4]
[310248914,1704420645293,-402.21701176,0.00037897,4]
[310248915,1704420645303,-46992.09509703,0.00037898,14]
[310248916,1704420645314,-276000.0,0.000379,2]
[310248917,1704420645324,-172.213539,0.000379,2]
[310248918,1704420645337,-172.213539,0.000379,2]
[310248919,1704420645348,-151.0,0.000379,2]
[310248920,1704420645358,-151.0,0.000379,2]
[310248921,1704420645368,-23444.35180738,0.00037955,15]
[310248922,1704420645378,-1049.82427488,0.00037997,7]
[310248923,1704420645388,-6084.04044233,0.00037997,2]
[310248924,1704420645399,-172.37871933,0.00037997,7]
[310248925,1704420645408,-898.95667902,0.00037998,2]
[310248926,1704420645419,-271.11812341,0.00037998,4]
[310248927,1704420645428,-172.213539,0.00037999,2]
[310248928,1704420645438,-172.213539,0.00037999,2]
[310248929,1704420645447,-259.503196,0.00037999,2]
[310248930,1704420645457,-151.0,0.00037999,2]
[310248931,1704420645466,-2602.94329194,0.00037999,4]
[310248932,1704420645476,-301.15053824,0.00037999,4]
[310248933,1704420645486,-1355.74374675,0.00037999,4]
[310248934,1704420645495,-405.4323141,0.00037999,4]
[310248935,1704420645506,-569.25315621,0.00037999,4]
[310248936,1704420645515,-11271.20108265,0.00037999,4]
[310248937,1704420645525,-1251.07349725,0.00037999,4]
[310248938,1704420645534,-2843.59866001,0.00037999,7]
[310248939,1704420645544,-941.65294251,0.00037999,2]
[310248940,1704420645553,-1378.70159383,0.00037999,4]
[310248941,1704420645564,-487.54642288,0.00037999,4]
[310248942,1704420645574,-3539.86097792,0.00037999,2]
[310248943,1704420645583,-266.79431315,0.00037999,4]
[310248944,1704420645593,-405.8321848,0.00037999,4]
[310248946,1704420645603,-3909.8535251,0.00037999,4]
[310248948,1704420645612,-356.39605003,0.00037999,14]
[310248949,1704420645622,-529.68161508,0.00037999,4]
[310248950,1704420645631,-1196.80540137,0.00037999,4]
[310248951,1704420645641,-28708.23658466,0.00038,2]
[310248952,1704420645651,-2141.36025144,0.00038,4]
[310248954,1704420645660,-1492.63446283,0.00038,120]
[310248955,1704420645669,-379.58002868,0.00038,4]
[310248956,1704420645678,-41647.36097539,0.00038,30]
[310248957,1704420645687,-7280.87842256,0.00038,10]
[310248958,1704420645712,-0.78376586,0.00038,10]
[310249000,1704420650385,-500.0,0.00030999,2]
[310249001,1704420650398,-397.81212279,0.00030999,2]
[310249002,1704420650408,-251.35670313,0.00030999,2]
[310249003,1704420650419,-500.0,0.00037897,4]
[310249004,1704420650429,-227.10812769,0.00037897,4]
[310249005,1704420650440,-402.44749219,0.00037897,4]
[310249006,1704420650449,-237.44318229,0.00037897,4]
[310249007,1704420650459,-500.0,0.00037897,4]
[310249008,1704420650469,-450.81402188,0.00037897,7]
[310249009,1704420650479,-626.45142185,0.00037897,4]
[310249010,1704420650488,-241.46849532,0.00037997,7]
[310249012,1704420650498,-442.46590937,0.00037997,7]
[310249013,1704420650507,-436.26487661,0.00037997,7]
[310249014,1704420650516,-375.87085311,0.00037997,7]
[310249015,1704420650526,-197.31654597,0.00037999,4]
[310249016,1704420650535,-259.4918409,0.00037999,4]
[310249017,1704420650544,-1222.07103576,0.00038,10]
[310249018,1704420650577,-538.61450309,0.00038,10]
[310249023,1704421628089,-255.04884946,0.00027876,2]
[310249024,1704421628113,-154.81422293,0.00027877,4]
[310249025,1704421628135,-5329.5831858,0.00027898,7]
[310249026,1704421628159,-1111.85004638,0.0002988,4]
[310249027,1704421628194,-303.27586409,0.0002988,4]
[310249028,1704421628216,-730.17835219,0.00030998,4]
[310249081,1704421832432,-154.81422293,0.00030897,5]
[310249082,1704421832442,-525.75957706,0.00030898,2]
[310249143,1704421838504,-189.16148104,0.00030898,2]
[310249145,1704421838517,-1375.78050302,0.00030998,4]
[310249147,1704421838529,-155.99269198,0.00030998,4]
[310249150,1704421838542,-1000.0,0.00034076,7]
[310249152,1704421838552,-280.0,0.00034077,2]
[310249154,1704421838562,-3841.3545861,0.00034161,2]
[310249157,1704421838581,-3552.22013647,0.00034198,4]
[310249159,1704421838593,-183.966673,0.00034367,2]
[310249161,1704421838604,-85.32844171,0.00035146,2]
[310249165,1704421838625,-116.30782429,0.00035146,2]
[310249167,1704421838637,-1439.799907,0.00035146,2]
[310249169,1704421838649,-1000.0,0.00035371,10]
[310249171,1704421838661,-266.78832144,0.00035371,2]
[310249173,1704421838671,-237.48298671,0.00035371,2]
[310249176,1704421838680,-493.0,0.00035452,2]
[310249178,1704421838693,-221.59054,0.00035616,120]
[310249180,1704421838707,-548.56671718,0.000359,2]
[310249182,1704421838718,-183.966673,0.00035929,2]
[310249185,1704421838730,-1439.799907,0.00036447,2]
[310249187,1704421838741,-174.435,0.00037289,2]
[310249189,1704421838752,-183.966673,0.0003749,2]
[310249191,1704421838763,-250.0,0.00037617,15]
[310249194,1704421838775,-1194.20626984,0.00037668,2]
[310249196,1704421838787,-949.33714256,0.00037747,2]
[310249214,1704421838951,-0.09047821,0.00037747,2]
[310249322,1704421841723,-490.37228623,0.00037747,2]
[310249323,1704421841735,-174.17904894,0.00037797,8]
[310249324,1704421841747,-167.28561186,0.00037897,2]
[310249325,1704421841759,-400.37736545,0.00037898,2]
[310249326,1704421841769,-3108.06389124,0.00037899,2]
[310249477,1704421844691,-1458.46139845,0.00037899,2]
[310249602,1704421846434,-331.80459168,0.00037899,2]
[310249604,1704421846444,-567.2635674,0.000379,2]
[310249612,1704422949118,-253.29346904,0.00026149,2]
[310249613,1704422949145,-273.27943354,0.00026149,2]
[310249614,1704422949167,-1211.64702523,0.0002615,2]
[310249615,1704422949189,-300.99259591,0.0002615,2]
[310249616,1704422949211,-235.84148001,0.0002615,2]
[310249617,1704422949231,-9907.49920413,0.0002615,2]
[310249618,1704422949256,-343.61348339,0.00026151,2]
[310249619,1704422949279,-154.81422293,0.00026151,4]
[310249620,1704422949299,-2509.67018179,0.00026151,2]
[310249621,1704422949320,-2705.78299771,0.00026151,2]
[310249622,1704422949342,-156.68506121,0.00026152,2]
[310249623,1704422949365,-451.29256206,0.00026152,2]
[310249624,1704422949387,-525.10226848,0.00026152,2]
[310249625,1704422949410,-172.33901996,0.00026153,3]
[310249626,1704422949432,-4705.82021629,0.00026249,2]
[310249627,1704422949454,-13678.83620673,0.00026249,2]
[310249628,1704422949475,-3195.82578987,0.0002625,2]
[310249629,1704422949495,-1574.23522059,0.00026251,2]
[310249630,1704422949516,-154.81422293,0.00026251,2]
[310249631,1704422949538,-466.32790841,0.00026251,2]
[310249632,1704422949558,-265.20914203,0.00026253,2]
[310249633,1704422949578,-2482.39965936,0.00026253,2]
[310249634,1704422949598,-7935.87115541,0.00026253,2]
[310249635,1704422949618,-1238.62873412,0.00026254,2]
[310249636,1704422949640,-250.0,0.00026259,2]
[310249637,1704422949661,-201.636266,0.00026943,2]
[310249638,1704422949682,-1321.39393737,0.00027932,2]
[310249639,1704422949703,-1884.01,0.00027933,3]
[310249640,1704422949727,-1999.15,0.00027933,3]
[310249641,1704422949748,-469.16586191,0.00027941,2]
[310249642,1704422949768,-19137.30849322,0.00027943,2]
[310249643,1704422949789,-753.03001621,0.00027946,2]
[310249644,1704422949811,-171.666619,0.00027948,2]
[310249645,1704422949831,-344.4305603,0.00028,2]
[310249646,1704422949851,-3103.63921168,0.00029425,2]
[310249647,1704422949872,-2816.21085006,0.00029426,2]
[310249648,1704422949892,-1060.68683109,0.00029446,2]
[310249649,1704422949912,-2398.98,0.0002949,3]
[310249650,1704422949934,-1051.69087076,0.00029498,7]
[310249651,1704422949955,-2698.75054837,0.000295,30]
[310249652,1704422960103,-4094.70333044,0.00026149,2]
[310249734,1704423038697,-762.60121561,0.00026149,2]
[310249735,1704423038706,-154.81422293,0.00026149,2]
[310249736,1704423038716,-154.81422293,0.00027898,4]
[310249737,1704423038725,-344.4305603,0.00028,2]
[310249738,1704423038734,-265.20914203,0.00029446,2]
[310249739,1704423038744,-1321.39393737,0.00029446,2]
[310249740,1704423038754,-300.99259591,0.00029447,2]
[310249741,1704423038763,-3103.63921168,0.00029447,2]
[310249742,1704423038772,-852.03278749,0.00029448,2]
[310249743,1704423038782,-1404.41782154,0.000295,30]
[310249795,1704423041825,-17911.52786037,0.000295,30]
[310249796,1704423041835,-307.61781496,0.000297,2]
[310249797,1704423041844,-496.33210896,0.000298,5]
[310249798,1704423041854,-171.666619,0.00029853,2]
[310249799,1704423041863,-1000.0,0.0003,2]
[310249800,1704423041873,-222.0,0.0003,2]
[310249801,1704423041882,-7029.07521928,0.0003,4]
[310249802,1704423041891,-685.71824329,0.0003,4]
[310249803,1704423041900,-6538.37354299,0.0003,4]
[310249804,1704423041911,-638.77754188,0.0003,4]
[310249805,1704423041921,-243.43593693,0.00030371,4]
[310249806,1704423041932,-3487.67136003,0.00030376,4]
[310249807,1704423041941,-2121.13979278,0.00030686,4]
[310249808,1704423041952,-383.08880679,0.00030885,4]
[310249809,1704423041963,-555.8426536,0.00030896,4]
[310249810,1704423041972,-176.23554821,0.00030896,4]
[310249811,1704423041982,-450.95927953,0.00030896,4]
[310249812,1704423041992,-155.22223598,0.00030897,4]
[310249813,1704423042003,-448.08065423,0.00030897,4]
[310249814,1704423042018,-743.64489375,0.00030897,4]
[310249815,1704423042030,-363.20947054,0.00030897,4]
[310249816,1704423042040,-155.7094461,0.00030897,2]
[310249817,1704423042051,-496.52545114,0.00030965,4]
[310249818,1704423042063,-1665.96,0.00030988,3]
[310249819,1704423042073,-1388.3,0.00030988,3]
[310249820,1704423042083,-213.75435407,0.00030996,4]
[310249821,1704423042092,-155.34866474,0.00030996,4]
[310249822,1704423042102,-155.77118183,0.00030996,4]
[310249823,1704423042112,-1581.19783116,0.00030996,4]
[310249824,1704423042123,-279.79390126,0.00030996,4]
[310249825,1704423042133,-308.21042626,0.00030996,4]
[310249826,1704423042143,-155.23284584,0.00030996,4]
[310249827,1704423042153,-171.577363,0.00030996,4]
[310249828,1704423042162,-155.40113874,0.00030996,4]
[310249829,1704423042173,-416.59254081,0.00030996,4]
[310249830,1704423042182,-155.24923478,0.00030996,4]
[310249831,1704423042193,-683.42293764,0.00030996,4]
[310249832,1704423042203,-160.74311348,0.00030996,2]
[310249833,1704423042213,-165.49712597,0.00030996,4]
[310249834,1704423042222,-195.50757728,0.00030996,4]
[310249835,1704423042232,-155.43695765,0.00030996,2]
[310249836,1704423042242,-370.53626376,0.00030996,4]
[310249837,1704423042251,-158.25059054,0.00030996,4]
[310249838,1704423042261,-1653.52920223,0.00030996,4]
[310249839,1704423042270,-161.3207187,0.00030996,4]
[310249840,1704423042280,-509.31522942,0.00030997,4]
[310249841,1704423042289,-3893.10032845,0.00030998,4]
[310249842,1704423042299,-155.34872192,0.00030998,2]
[310249843,1704423042309,-210.8833785,0.00030998,4]
[310249844,1704423042318,-155.75858157,0.00030998,4]
[310249845,1704423042329,-167.32136736,0.00030998,4]
[310249846,1704423042338,-285.30351426,0.00030998,4]
[310249847,1704423042347,-155.09335298,0.00030998,4]
[310249848,1704423042357,-593.63024681,0.00030998,4]
[310249849,1704423042367,-155.26001974,0.00030998,4]
[310249850,1704423042377,-298.4571858,0.00030998,4]
[310249851,1704423042387,-331.35143978,0.00030998,4]
[310249852,1704423042397,-209.07925906,0.00030998,4]
[310249853,1704423042407,-156.4069513,0.00030998,2]
[310249854,1704423042417,-161.52679236,0.00030998,4]
[310249855,1704423042427,-291.57730732,0.00030998,4]
[310249856,1704423042438,-165.13386565,0.00030998,4]
[310249857,1704423042452,-228.37337966,0.00030998,4]
[310249858,1704423042462,-786.35658041,0.00030998,4]
[310249859,1704423042472,-197.72102266,0.00030998,4]
[310249860,1704423042481,-1631.31457245,0.00030998,4]
[310249861,1704423042491,-928.45923481,0.00030998,4]
[310249862,1704423042504,-162.22572623,0.00030998,4]
[310249863,1704423042514,-155.54642717,0.00030998,4]
[310249864,1704423042523,-350.69115353,0.00030998,2]
[310249865,1704423042534,-954.46156058,0.00030998,4]
[310249866,1704423042544,-1994.4011708,0.00030998,4]
[310249867,1704423042554,-289.14234698,0.00030998,4]
[310249868,1704423042563,-188.2513951,0.00030998,4]
[310249869,1704423042573,-1048.14560533,0.00030998,7]
[310249870,1704423042582,-265.82498479,0.00030998,4]
[310249871,1704423042592,-487.28617803,0.00030998,4]
[310249872,1704423042602,-570.93734049,0.00030998,4]
[310249873,1704423042611,-2450.8373836,0.00030998,3]
[310249874,1704423042622,-464.12085426,0.00030998,4]
[310249875,1704423042631,-543.56581704,0.00030998,2]
[310249876,1704423042640,-1109.90244217,0.00030998,4]